[Event "*** Titled Tuesday 3|2 Blitz (Early)"]
[Site "Chess.com"]
[Date "2016.11.01"]
[Round "3"]
[White "KestutisLabeckas"]
[Black "BillieKimbah"]
[Result "0-1"]
[WhiteElo "2489"]
[BlackElo "2574"]
[TimeControl "180+2"]
[EndTime "11:34:38 PDT"]
[Termination "BillieKimbah won on time"]

1. d4 {[%clk 0:03:01.9]} 1... Nf6 {[%clk 0:03:00.3]} 2. Bg5 {[%clk 0:03:02.2]}
2... d5 {[%clk 0:02:59.7]} 3. Bxf6 {[%clk 0:03:01.2]} 3... exf6 {[%clk
0:02:59.5]} 4. c4 {[%clk 0:03:02.8]} 4... dxc4 {[%clk 0:02:59.8]} 5. e3 {[%clk
0:03:03.5]} 5... Bd6 {[%clk 0:03:00.5]} 6. Bxc4 {[%clk 0:03:03.8]} 6... O-O
{[%clk 0:03:01.4]} 7. Nc3 {[%clk 0:03:04.7]} 7... c6 {[%clk 0:03:01.5]} 8. h3
{[%clk 0:03:02.4]} 8... Nd7 {[%clk 0:03:01.4]} 9. Nf3 {[%clk 0:03:03]} 9... f5
{[%clk 0:03:00.5]} 10. O-O {[%clk 0:03:02.7]} 10... Nf6 {[%clk 0:03:01.4]} 11.
d5 {[%clk 0:02:43.8]} 11... c5 {[%clk 0:02:59.5]} 12. a4 {[%clk 0:02:43.4]}
12... a6 {[%clk 0:02:53.9]} 13. Qc2 {[%clk 0:02:40.4]} 13... b6 {[%clk
0:02:50.9]} 14. Rfe1 {[%clk 0:02:24.2]} 14... Re8 {[%clk 0:02:50.1]} 15. Bd3
{[%clk 0:02:02.1]} 15... g6 {[%clk 0:02:48]} 16. Rad1 {[%clk 0:01:58.9]} 16...
Ra7 {[%clk 0:02:46]} 17. e4 {[%clk 0:01:46.6]} 17... fxe4 {[%clk 0:02:38.3]} 18.
Nxe4 {[%clk 0:01:48.5]} 18... Nxe4 {[%clk 0:02:38.2]} 19. Rxe4 {[%clk
0:01:49.1]} 19... Rxe4 {[%clk 0:02:36.8]} 20. Bxe4 {[%clk 0:01:49.8]} 20... Qf6
{[%clk 0:02:36.7]} 21. Qc3 {[%clk 0:01:45.9]} 21... Qxc3 {[%clk 0:02:31.2]} 22.
bxc3 {[%clk 0:01:46.4]} 22... Bd7 {[%clk 0:02:32.8]} 23. Bc2 {[%clk 0:01:46.2]}
23... b5 {[%clk 0:02:31.1]} 24. Ra1 {[%clk 0:01:39.8]} 24... b4 {[%clk
0:02:24.3]} 25. cxb4 {[%clk 0:01:40.5]} 25... cxb4 {[%clk 0:02:24]} 26. Nd2
{[%clk 0:01:38.3]} 26... a5 {[%clk 0:01:24.3]} 27. Nc4 {[%clk 0:01:34]} 27...
Bf8 {[%clk 0:01:18.5]} 28. Bb3 {[%clk 0:01:33.7]} 28... Bg7 {[%clk 0:01:02]} 29.
Rc1 {[%clk 0:01:24]} 29... Bd4 {[%clk 0:01:01.1]} 30. Kf1 {[%clk 0:01:02.5]}
30... Kg7 {[%clk 0:00:58.2]} 31. Rd1 {[%clk 0:00:52.9]} 31... Bf6 {[%clk
0:00:55.7]} 32. Ke2 {[%clk 0:00:35]} 32... h5 {[%clk 0:00:55.6]} 33. f4 {[%clk
0:00:24.7]} 33... Kf8 {[%clk 0:00:51.2]} 34. Kf3 {[%clk 0:00:24.4]} 34... Rc7
{[%clk 0:00:47.9]} 35. d6 {[%clk 0:00:11.3]} 35... Rc5 {[%clk 0:00:46.4]} 36.
Rd3 {[%clk 0:00:06.2]} 36... Be6 {[%clk 0:00:36]} 37. Nd2 {[%clk 0:00:06.9]}
37... Bf5 {[%clk 0:00:30.6]} 38. Ne4 {[%clk 0:00:07.9]} 38... Rc3 {[%clk
0:00:09.3]} 39. Rxc3 {[%clk 0:00:05.9]} 39... Bxc3 {[%clk 0:00:07.7]} 0-1

[Event "*** Titled Tuesday 3|2 Blitz (Early)"]
[Site "Chess.com"]
[Date "2016.11.01"]
[Round "3"]
[White "micfel"]
[Black "Alohamora11"]
[Result "1-0"]
[WhiteElo "2273"]
[BlackElo "2227"]
[TimeControl "180+2"]
[EndTime "11:34:45 PDT"]
[Termination "micfel won by checkmate"]

1. e4 {[%clk 0:03:01.9]} 1... c5 {[%clk 0:02:12.6]} 2. Nf3 {[%clk 0:03:01.5]}
2... g6 {[%clk 0:02:13.4]} 3. d4 {[%clk 0:03:02.2]} 3... cxd4 {[%clk 0:02:15.2]}
4. Nxd4 {[%clk 0:03:03.2]} 4... Bg7 {[%clk 0:02:15.9]} 5. Nc3 {[%clk 0:03:03.9]}
5... Nc6 {[%clk 0:02:17.1]} 6. Be3 {[%clk 0:03:02.6]} 6... Nf6 {[%clk
0:02:18.6]} 7. Be2 {[%clk 0:03:03.2]} 7... O-O {[%clk 0:02:17.7]} 8. Nb3 {[%clk
0:03:03.6]} 8... d6 {[%clk 0:02:05.1]} 9. g4 {[%clk 0:03:02.1]} 9... Be6 {[%clk
0:01:35.1]} 10. g5 {[%clk 0:03:02]} 10... Nd7 {[%clk 0:01:28.4]} 11. Nd4 {[%clk
0:03:01.9]} 11... Nxd4 {[%clk 0:01:24.5]} 12. Bxd4 {[%clk 0:03:02.5]} 12... Bxd4
{[%clk 0:01:25.3]} 13. Qxd4 {[%clk 0:03:03.1]} 13... Qb6 {[%clk 0:01:26.9]} 14.
O-O-O {[%clk 0:03:03.6]} 14... Qxd4 {[%clk 0:01:23.6]} 15. Rxd4 {[%clk 0:03:04]}
15... Rfc8 {[%clk 0:01:21.8]} 16. h4 {[%clk 0:03:00.2]} 16... Ne5 {[%clk
0:01:02.8]} 17. f4 {[%clk 0:03:00.5]} 17... Nc6 {[%clk 0:00:57.5]} 18. Rd2
{[%clk 0:03:00.5]} 18... Rd8 {[%clk 0:00:50.2]} 19. Bf3 {[%clk 0:03:00.3]} 19...
Rac8 {[%clk 0:00:43.9]} 20. h5 {[%clk 0:03:00.3]} 20... a6 {[%clk 0:00:37]} 21.
Rdh2 {[%clk 0:02:53.6]} 21... Nd4 {[%clk 0:00:27.7]} 22. Bd1 {[%clk 0:02:52.4]}
22... gxh5 {[%clk 0:00:23]} 23. Rxh5 {[%clk 0:02:52.5]} 23... Kf8 {[%clk
0:00:24.6]} 24. Rxh7 {[%clk 0:02:52.5]} 24... Ke8 {[%clk 0:00:26]} 25. f5 {[%clk
0:02:50]} 25... Bc4 {[%clk 0:00:26.5]} 26. Rh8+ {[%clk 0:02:34.9]} 26... Kd7
{[%clk 0:00:26.4]} 27. Rxd8+ {[%clk 0:02:34.4]} 27... Rxd8 {[%clk 0:00:27.1]}
28. b3 {[%clk 0:02:32.8]} 28... Bb5 {[%clk 0:00:28.3]} 29. Rh7 {[%clk
0:02:31.4]} 29... Rf8 {[%clk 0:00:27.4]} 30. Bg4 {[%clk 0:02:22.9]} 30... Ke8
{[%clk 0:00:20.8]} 31. Bh5 {[%clk 0:02:22.1]} 31... Bd7 {[%clk 0:00:17.8]} 32.
Nd5 {[%clk 0:02:14.9]} 32... Nc6 {[%clk 0:00:17.7]} 33. Nf4 {[%clk 0:02:00.3]}
33... Ne5 {[%clk 0:00:18.5]} 34. g6 {[%clk 0:01:59.4]} 34... fxg6 {[%clk
0:00:19.3]} 35. Nxg6 {[%clk 0:01:59.7]} 35... Nxg6 {[%clk 0:00:20.1]} 36. Bxg6+
{[%clk 0:01:53]} 36... Kd8 {[%clk 0:00:21]} 37. c4 {[%clk 0:01:50.4]} 37... Bc6
{[%clk 0:00:21.2]} 38. Rh4 {[%clk 0:01:47.6]} 38... Kd7 {[%clk 0:00:22.3]} 39.
Kd2 {[%clk 0:01:47.3]} 39... Rf6 {[%clk 0:00:23.5]} 40. Ke3 {[%clk 0:01:47.2]}
40... e6 {[%clk 0:00:24.7]} 41. Rh7+ {[%clk 0:01:46.1]} 41... Kc8 {[%clk
0:00:26]} 42. Rf7 {[%clk 0:01:41.8]} 42... Rxf7 {[%clk 0:00:25.6]} 43. Bxf7
{[%clk 0:01:42.4]} 43... exf5 {[%clk 0:00:27]} 44. exf5 {[%clk 0:01:42.9]} 44...
Kd8 {[%clk 0:00:28.5]} 45. Kd4 {[%clk 0:01:37.6]} 45... Ke7 {[%clk 0:00:29.5]}
46. Bd5 {[%clk 0:01:31.9]} 46... Kf6 {[%clk 0:00:29.2]} 47. Be4 {[%clk
0:01:32.4]} 47... a5 {[%clk 0:00:25.9]} 48. a3 {[%clk 0:01:31.8]} 48... a4
{[%clk 0:00:26.1]} 49. b4 {[%clk 0:01:26.9]} 49... Bd7 {[%clk 0:00:23.7]} 50.
Bxb7 {[%clk 0:01:24.6]} 50... Bxf5 {[%clk 0:00:24.7]} 51. Bc6 {[%clk 0:01:22]}
51... Bc2 {[%clk 0:00:24.3]} 52. Kd5 {[%clk 0:01:21.8]} 52... Ke7 {[%clk
0:00:25.3]} 53. b5 {[%clk 0:01:22.2]} 53... Kd8 {[%clk 0:00:26.3]} 54. Kxd6
{[%clk 0:01:21]} 54... Kc8 {[%clk 0:00:27.9]} 55. b6 {[%clk 0:01:20.6]} 55...
Kb8 {[%clk 0:00:29]} 56. c5 {[%clk 0:01:21]} 56... Bb3 {[%clk 0:00:29.4]} 57.
Bd5 {[%clk 0:01:21]} 57... Bd1 {[%clk 0:00:29.1]} 58. c6 {[%clk 0:01:20.7]}
58... Bg4 {[%clk 0:00:27.7]} 59. c7+ {[%clk 0:01:15.7]} 59... Kc8 {[%clk
0:00:28.8]} 60. b7# {[%clk 0:01:16.2]} 1-0

[Event "*** Titled Tuesday 3|2 Blitz (Early)"]
[Site "Chess.com"]
[Date "2016.11.01"]
[Round "3"]
[White "NTBT_DHS"]
[Black "Haridaskesavan"]
[Result "1-0"]
[WhiteElo "2493"]
[BlackElo "2118"]
[TimeControl "180+2"]
[EndTime "11:35:00 PDT"]
[Termination "NTBT_DHS won by resignation"]

1. d4 {[%clk 0:02:55.6]} 1... Nf6 {[%clk 0:03:00.1]} 2. c4 {[%clk 0:02:56.9]}
2... d6 {[%clk 0:03:01.3]} 3. Nf3 {[%clk 0:02:57.1]} 3... Nbd7 {[%clk
0:03:02.4]} 4. Bf4 {[%clk 0:02:57.1]} 4... e6 {[%clk 0:02:58.5]} 5. h3 {[%clk
0:02:58]} 5... Be7 {[%clk 0:02:59.6]} 6. Nc3 {[%clk 0:02:58.8]} 6... O-O {[%clk
0:03:00.4]} 7. e3 {[%clk 0:02:59.7]} 7... b6 {[%clk 0:03:01.4]} 8. Bd3 {[%clk
0:02:59.4]} 8... Bb7 {[%clk 0:03:02.6]} 9. O-O {[%clk 0:02:58.5]} 9... Re8
{[%clk 0:03:03.6]} 10. Rc1 {[%clk 0:02:59.1]} 10... Bf8 {[%clk 0:03:03.9]} 11.
Bb1 {[%clk 0:02:55.4]} 11... e5 {[%clk 0:03:03.1]} 12. Bh2 {[%clk 0:02:48.7]}
12... e4 {[%clk 0:03:02.1]} 13. Nd2 {[%clk 0:02:48.2]} 13... a6 {[%clk
0:02:49.3]} 14. d5 {[%clk 0:02:35.4]} 14... a5 {[%clk 0:02:46.8]} 15. Ncxe4
{[%clk 0:02:33.9]} 15... Nxe4 {[%clk 0:02:39.6]} 16. Nxe4 {[%clk 0:02:35.5]}
16... f5 {[%clk 0:02:34.6]} 17. Ng3 {[%clk 0:02:30.5]} 17... g6 {[%clk
0:02:35.4]} 18. Ne2 {[%clk 0:02:31.5]} 18... Bg7 {[%clk 0:02:36.2]} 19. Nd4
{[%clk 0:02:32.1]} 19... Nc5 {[%clk 0:02:35.8]} 20. b3 {[%clk 0:02:18.3]} 20...
Qf6 {[%clk 0:02:35.6]} 21. Qf3 {[%clk 0:02:03.6]} 21... Ne4 {[%clk 0:02:30.3]}
22. Rfd1 {[%clk 0:02:01.6]} 22... Re7 {[%clk 0:02:26.6]} 23. Ne6 {[%clk
0:01:54.8]} 23... Ng5 {[%clk 0:02:12.1]} 24. Nxg5 {[%clk 0:01:50.4]} 24... Qxg5
{[%clk 0:02:13.1]} 25. Bf4 {[%clk 0:01:51.3]} 25... Qf6 {[%clk 0:02:13.6]} 26.
Qg3 {[%clk 0:01:52.7]} 26... h6 {[%clk 0:02:09]} 27. h4 {[%clk 0:01:37.7]} 27...
Rf8 {[%clk 0:01:55.1]} 28. Rd2 {[%clk 0:01:17.9]} 28... Bc8 {[%clk 0:01:55.5]}
29. Rcd1 {[%clk 0:01:10.6]} 29... Kh7 {[%clk 0:01:54.6]} 30. a3 {[%clk 0:01:08]}
30... Qc3 {[%clk 0:01:39.5]} 31. Rd3 {[%clk 0:01:04.1]} 31... Qf6 {[%clk
0:01:39.4]} 32. b4 {[%clk 0:01:04.1]} 32... axb4 {[%clk 0:01:37.7]} 33. axb4
{[%clk 0:01:05.4]} 33... Bd7 {[%clk 0:01:37.3]} 34. Ra3 {[%clk 0:01:04.7]} 34...
Qb2 {[%clk 0:01:32.6]} 35. Ra7 {[%clk 0:01:05]} 35... Ba4 {[%clk 0:01:18]} 36.
Rf1 {[%clk 0:00:49.7]} 36... Qxb4 {[%clk 0:01:17.4]} 37. Qh3 {[%clk 0:00:39.1]}
37... Qxc4 {[%clk 0:01:07.4]} 38. Bxd6 {[%clk 0:00:39]} 38... Bb5 {[%clk
0:00:43]} 39. Rd1 {[%clk 0:00:38.1]} 39... Qe2 {[%clk 0:00:26.7]} 40. Qf3 {[%clk
0:00:37]} 40... Qxf3 {[%clk 0:00:19.8]} 41. gxf3 {[%clk 0:00:36.7]} 41... cxd6
{[%clk 0:00:16.7]} 42. Rxe7 {[%clk 0:00:37.4]} 42... Be2 {[%clk 0:00:18.6]} 43.
Rc1 {[%clk 0:00:38.5]} 43... Bxf3 {[%clk 0:00:19.4]} 44. Rcc7 {[%clk 0:00:39.6]}
44... Rg8 {[%clk 0:00:19.4]} 45. Kh2 {[%clk 0:00:40.9]} 45... Bxd5 {[%clk
0:00:19.7]} 46. h5 {[%clk 0:00:41.2]} 46... Be4 {[%clk 0:00:14.5]} 47. Ba2
{[%clk 0:00:28.3]} 47... d5 {[%clk 0:00:14.9]} 48. Kg3 {[%clk 0:00:29.7]} 48...
g5 {[%clk 0:00:14.6]} 49. f3 {[%clk 0:00:30.1]} 49... Kh8 {[%clk 0:00:12.5]} 50.
fxe4 {[%clk 0:00:29.7]} 50... Be5+ {[%clk 0:00:13.6]} 51. Rxe5 {[%clk
0:00:30.2]} 1-0

[Event "*** Titled Tuesday 3|2 Blitz (Early)"]
[Site "Chess.com"]
[Date "2016.11.01"]
[Round "3"]
[White "VSERGUEI"]
[Black "TheCount"]
[Result "1-0"]
[WhiteElo "2572"]
[BlackElo "2425"]
[TimeControl "180+2"]
[EndTime "11:35:11 PDT"]
[Termination "VSERGUEI won by resignation"]

1. d4 {[%clk 0:03:02]} 1... Nf6 {[%clk 0:03:00.6]} 2. c4 {[%clk 0:03:03.2]} 2...
g6 {[%clk 0:03:02.1]} 3. Nc3 {[%clk 0:03:04.3]} 3... d5 {[%clk 0:03:03.3]} 4.
Nf3 {[%clk 0:03:05.4]} 4... Bg7 {[%clk 0:03:04.2]} 5. Bg5 {[%clk 0:03:06.6]}
5... Ne4 {[%clk 0:03:04.2]} 6. cxd5 {[%clk 0:03:07.8]} 6... Nxg5 {[%clk
0:03:05.3]} 7. Nxg5 {[%clk 0:03:09.7]} 7... e6 {[%clk 0:03:06.7]} 8. Qd2 {[%clk
0:03:10.6]} 8... exd5 {[%clk 0:03:08.3]} 9. Qe3+ {[%clk 0:03:11.7]} 9... Kf8
{[%clk 0:03:09.9]} 10. Nf3 {[%clk 0:03:12.8]} 10... c6 {[%clk 0:03:02.4]} 11. g3
{[%clk 0:03:12.9]} 11... Qe7 {[%clk 0:02:48.1]} 12. Qd2 {[%clk 0:03:12.1]} 12...
Bf6 {[%clk 0:02:45.4]} 13. Bg2 {[%clk 0:03:10.9]} 13... Kg7 {[%clk 0:02:46.7]}
14. O-O {[%clk 0:03:11.9]} 14... Bg4 {[%clk 0:02:41.6]} 15. Rfe1 {[%clk
0:03:11.7]} 15... Nd7 {[%clk 0:02:39.3]} 16. h3 {[%clk 0:03:09.9]} 16... Bf5
{[%clk 0:02:30]} 17. g4 {[%clk 0:03:09]} 17... Be4 {[%clk 0:02:11.9]} 18. g5
{[%clk 0:03:09.7]} 18... Bxf3 {[%clk 0:02:06.2]} 19. gxf6+ {[%clk 0:02:58]}
19... Nxf6 {[%clk 0:02:08.1]} 20. Bxf3 {[%clk 0:02:56.7]} 20... Rae8 {[%clk
0:02:09.1]} 21. e4 {[%clk 0:02:54.1]} 21... dxe4 {[%clk 0:02:08.4]} 22. Bxe4
{[%clk 0:02:51.4]} 22... Qd7 {[%clk 0:02:05.3]} 23. Bg2 {[%clk 0:02:51.2]} 23...
Rd8 {[%clk 0:01:59.7]} 24. Rad1 {[%clk 0:02:50.9]} 24... Qf5 {[%clk 0:01:57.5]}
25. Re5 {[%clk 0:02:45.7]} 25... Qd7 {[%clk 0:01:53.8]} 26. d5 {[%clk 0:02:44]}
26... cxd5 {[%clk 0:01:53.9]} 27. Nxd5 {[%clk 0:02:43.2]} 27... Qd6 {[%clk
0:01:47.7]} 28. Qe3 {[%clk 0:02:34.9]} 28... Rhe8 {[%clk 0:01:42.3]} 29. Rxe8
{[%clk 0:02:19.9]} 29... Rxe8 {[%clk 0:01:44.2]} 30. Qc3 {[%clk 0:02:12.3]}
30... Re5 {[%clk 0:01:45.2]} 31. f4 {[%clk 0:02:07.4]} 31... Rf5 {[%clk
0:01:37.5]} 32. Be4 {[%clk 0:01:47.9]} 32... Rxf4 {[%clk 0:01:18.5]} 33. Nxf4
{[%clk 0:01:22.4]} 33... Qxd1+ {[%clk 0:01:18.7]} 34. Kg2 {[%clk 0:01:18.9]}
34... h5 {[%clk 0:00:22.2]} 35. Bxb7 {[%clk 0:01:07.2]} 35... h4 {[%clk
0:00:18.6]} 36. Bf3 {[%clk 0:00:51.7]} 36... Qd6 {[%clk 0:00:12]} 37. Ne2 {[%clk
0:00:47.2]} 37... Kh7 {[%clk 0:00:10.8]} 38. b4 {[%clk 0:00:46.3]} 38... Qe6
{[%clk 0:00:07.8]} 39. a4 {[%clk 0:00:40.6]} 39... Nh5 {[%clk 0:00:02.4]} 40.
Bxh5 {[%clk 0:00:36.6]} 40... gxh5 {[%clk 0:00:04]} 41. Qd3+ {[%clk 0:00:35.1]}
41... f5 {[%clk 0:00:04]} 42. Nd4 {[%clk 0:00:32.5]} 42... Qd5+ {[%clk
0:00:05.2]} 43. Kf2 {[%clk 0:00:29.7]} 43... Qa2+ {[%clk 0:00:04.7]} 44. Ke3
{[%clk 0:00:28]} 44... Kg7 {[%clk 0:00:03.4]} 45. Nxf5+ {[%clk 0:00:27.3]} 45...
Kf6 {[%clk 0:00:04.9]} 46. Nd4 {[%clk 0:00:27.2]} 46... Qh2 {[%clk 0:00:06]} 47.
Qf5+ {[%clk 0:00:27.3]} 47... Ke7 {[%clk 0:00:06.8]} 48. b5 {[%clk 0:00:21.7]}
48... Qg3+ {[%clk 0:00:06.7]} 49. Ke4 {[%clk 0:00:22.2]} 49... Qe1+ {[%clk
0:00:07.3]} 50. Kd5 {[%clk 0:00:23]} 50... Qh1+ {[%clk 0:00:07.6]} 51. Qe4+
{[%clk 0:00:23.7]} 1-0

[Event "*** Titled Tuesday 3|2 Blitz (Early)"]
[Site "Chess.com"]
[Date "2016.11.01"]
[Round "3"]
[White "howitzer14"]
[Black "Izoria123"]
[Result "1-0"]
[WhiteElo "2770"]
[BlackElo "2572"]
[TimeControl "180+2"]
[EndTime "11:35:18 PDT"]
[Termination "howitzer14 won by resignation"]

1. e4 {[%clk 0:03:02]} 1... e6 {[%clk 0:03:00.1]} 2. d4 {[%clk 0:03:03]} 2... d5
{[%clk 0:03:02]} 3. Nd2 {[%clk 0:03:04.9]} 3... c5 {[%clk 0:03:01.8]} 4. Ngf3
{[%clk 0:03:04.9]} 4... Nf6 {[%clk 0:02:57.5]} 5. exd5 {[%clk 0:03:03.4]} 5...
Nxd5 {[%clk 0:02:58.1]} 6. Nb3 {[%clk 0:03:01.9]} 6... Nd7 {[%clk 0:02:58.4]} 7.
c4 {[%clk 0:02:55]} 7... N5f6 {[%clk 0:02:58.6]} 8. Be2 {[%clk 0:02:50.4]} 8...
b6 {[%clk 0:02:48]} 9. O-O {[%clk 0:02:46.9]} 9... Bb7 {[%clk 0:02:48.8]} 10.
Re1 {[%clk 0:02:45.9]} 10... Be7 {[%clk 0:02:49.3]} 11. Bf4 {[%clk 0:02:43.2]}
11... O-O {[%clk 0:02:49.5]} 12. Qd3 {[%clk 0:02:32.4]} 12... a5 {[%clk
0:02:37]} 13. Rad1 {[%clk 0:02:26.5]} 13... a4 {[%clk 0:02:36.5]} 14. Nbd2
{[%clk 0:02:26.4]} 14... cxd4 {[%clk 0:02:35.8]} 15. Qxd4 {[%clk 0:02:23]} 15...
Bc5 {[%clk 0:02:31.4]} 16. Qc3 {[%clk 0:02:24.4]} 16... Qe7 {[%clk 0:02:23.1]}
17. h3 {[%clk 0:02:16.5]} 17... Rfd8 {[%clk 0:02:19.8]} 18. Bf1 {[%clk
0:02:12.7]} 18... a3 {[%clk 0:02:13.1]} 19. b3 {[%clk 0:02:10.5]} 19... Bb4
{[%clk 0:02:14.2]} 20. Qe3 {[%clk 0:02:09]} 20... Nc5 {[%clk 0:02:12.1]} 21. Be5
{[%clk 0:02:03.9]} 21... Nfe4 {[%clk 0:02:08]} 22. Nxe4 {[%clk 0:01:43.6]} 22...
Nxe4 {[%clk 0:02:09.7]} 23. Rxd8+ {[%clk 0:01:42.1]} 23... Rxd8 {[%clk
0:02:11.1]} 24. Re2 {[%clk 0:01:39.4]} 24... Bc5 {[%clk 0:01:44.2]} 25. Qf4
{[%clk 0:01:37.7]} 25... f5 {[%clk 0:01:33.9]} 26. h4 {[%clk 0:01:33]} 26... Rd1
{[%clk 0:01:29.1]} 27. Ng5 {[%clk 0:01:25.3]} 27... Nf6 {[%clk 0:01:17.3]} 28.
Bxf6 {[%clk 0:01:21.9]} 28... Qxf6 {[%clk 0:01:01]} 29. Rxe6 {[%clk 0:01:15.1]}
29... Qa1 {[%clk 0:01:01.3]} 30. Re8+ {[%clk 0:01:01.2]} 30... Bf8 {[%clk
0:01:01.6]} 31. Rxf8+ {[%clk 0:01:02.4]} 31... Kxf8 {[%clk 0:01:01.9]} 32. Qb8+
{[%clk 0:01:03.4]} 32... Ke7 {[%clk 0:00:56.5]} 33. Qxb7+ {[%clk 0:01:04.8]}
33... Kd6 {[%clk 0:00:44.4]} 34. Qxb6+ {[%clk 0:01:03.6]} 34... Kd7 {[%clk
0:00:43.3]} 35. Qb7+ {[%clk 0:01:02.1]} 35... Kd6 {[%clk 0:00:42.6]} 36. Qb6+
{[%clk 0:01:02.4]} 36... Kd7 {[%clk 0:00:43.7]} 37. Qe6+ {[%clk 0:00:57.5]}
37... Kc7 {[%clk 0:00:44.4]} 38. Qe7+ {[%clk 0:00:53.9]} 38... Kb8 {[%clk
0:00:44.4]} 39. Qb4+ {[%clk 0:00:51.7]} 39... Kc8 {[%clk 0:00:42.7]} 40. Qc5+
{[%clk 0:00:50.9]} 40... Kb8 {[%clk 0:00:43.6]} 41. Qf8+ {[%clk 0:00:37.9]}
41... Kb7 {[%clk 0:00:42.2]} 42. Qf7+ {[%clk 0:00:39.8]} 42... Kb8 {[%clk
0:00:43]} 43. Qe8+ {[%clk 0:00:36.4]} 43... Kb7 {[%clk 0:00:41.9]} 44. Qb5+
{[%clk 0:00:35.1]} 44... Kc8 {[%clk 0:00:42.7]} 45. c5 {[%clk 0:00:32.9]} 45...
Rxf1+ {[%clk 0:00:34.8]} 46. Qxf1 {[%clk 0:00:33]} 46... Qxa2 {[%clk 0:00:36]}
47. Qa6+ {[%clk 0:00:30.5]} 47... Kc7 {[%clk 0:00:33.3]} 48. Kh2 {[%clk
0:00:25.2]} 48... Qxb3 {[%clk 0:00:31.5]} 49. Ne6+ {[%clk 0:00:22.3]} 49... Kd7
{[%clk 0:00:27]} 50. c6+ {[%clk 0:00:18.9]} 50... Ke7 {[%clk 0:00:22.3]} 51. c7
{[%clk 0:00:20.2]} 1-0

[Event "*** Titled Tuesday 3|2 Blitz (Early)"]
[Site "Chess.com"]
[Date "2016.11.01"]
[Round "3"]
[White "ftorodent"]
[Black "viditchess"]
[Result "0-1"]
[WhiteElo "2499"]
[BlackElo "2536"]
[TimeControl "180+2"]
[EndTime "11:35:25 PDT"]
[Termination "viditchess won by resignation"]

1. d4 {[%clk 0:03:01.9]} 1... Nf6 {[%clk 0:03:00.6]} 2. c4 {[%clk 0:03:02.4]}
2... g6 {[%clk 0:03:01.4]} 3. Nc3 {[%clk 0:03:02.1]} 3... d5 {[%clk 0:03:02.6]}
4. Nf3 {[%clk 0:03:02.7]} 4... Bg7 {[%clk 0:03:02.9]} 5. cxd5 {[%clk 0:03:03.8]}
5... Nxd5 {[%clk 0:03:03.7]} 6. Bg5 {[%clk 0:03:05.5]} 6... O-O {[%clk
0:03:01.5]} 7. Rc1 {[%clk 0:03:05.4]} 7... Nxc3 {[%clk 0:03:01.6]} 8. bxc3
{[%clk 0:03:06.3]} 8... c5 {[%clk 0:03:02.6]} 9. e3 {[%clk 0:03:07.7]} 9... Nc6
{[%clk 0:02:54.3]} 10. Be2 {[%clk 0:03:08.1]} 10... Be6 {[%clk 0:02:45.6]} 11.
Qd2 {[%clk 0:03:07.5]} 11... h6 {[%clk 0:02:38.3]} 12. Bh4 {[%clk 0:03:07.9]}
12... cxd4 {[%clk 0:01:46.9]} 13. cxd4 {[%clk 0:03:08.3]} 13... g5 {[%clk
0:01:47.8]} 14. Bg3 {[%clk 0:03:08.7]} 14... Qa5 {[%clk 0:01:48.7]} 15. Bc4
{[%clk 0:02:52.7]} 15... Bxc4 {[%clk 0:01:44.8]} 16. Rxc4 {[%clk 0:02:52.9]}
16... Qxd2+ {[%clk 0:01:12.6]} 17. Kxd2 {[%clk 0:02:24.5]} 17... Rad8 {[%clk
0:01:11.7]} 18. Ke2 {[%clk 0:02:21.7]} 18... f5 {[%clk 0:01:06.2]} 19. Rd1
{[%clk 0:02:06]} 19... Rd5 {[%clk 0:01:04.3]} 20. h3 {[%clk 0:01:24.9]} 20... f4
{[%clk 0:00:59.2]} 21. Bh2 {[%clk 0:01:10.8]} 21... fxe3 {[%clk 0:00:48.4]} 22.
fxe3 {[%clk 0:01:11.4]} 22... Rfd8 {[%clk 0:00:48.1]} 23. Rd2 {[%clk 0:01:03.2]}
23... e6 {[%clk 0:00:37.7]} 24. Rb2 {[%clk 0:00:47.6]} 24... R8d7 {[%clk
0:00:37.3]} 25. Rbc2 {[%clk 0:00:48.2]} 25... Rb5 {[%clk 0:00:30.3]} 26. Rc5
{[%clk 0:00:47.1]} 26... Rxc5 {[%clk 0:00:27.5]} 27. Rxc5 {[%clk 0:00:48.1]}
27... Rd5 {[%clk 0:00:27]} 28. Rc2 {[%clk 0:00:43.2]} 28... Kf7 {[%clk
0:00:26.3]} 29. Nd2 {[%clk 0:00:37.3]} 29... Bxd4 {[%clk 0:00:21.5]} 30. Ne4
{[%clk 0:00:29.9]} 30... Ke7 {[%clk 0:00:13.5]} 31. Rd2 {[%clk 0:00:23.4]} 31...
Bb6 {[%clk 0:00:13.9]} 32. Rb2 {[%clk 0:00:21.1]} 32... e5 {[%clk 0:00:12.4]}
33. Nc3 {[%clk 0:00:20.2]} 33... Rc5 {[%clk 0:00:13.8]} 34. Na4 {[%clk
0:00:21.2]} 34... Ra5 {[%clk 0:00:14]} 35. Nxb6 {[%clk 0:00:22.3]} 35... axb6
{[%clk 0:00:15.9]} 36. Rxb6 {[%clk 0:00:23.3]} 36... Rxa2+ {[%clk 0:00:17.2]}
37. Kf3 {[%clk 0:00:25]} 37... Ra7 {[%clk 0:00:18.3]} 38. Ke4 {[%clk 0:00:26.3]}
38... Kd7 {[%clk 0:00:17.9]} 39. Bxe5 {[%clk 0:00:26.2]} 39... Ra4+ {[%clk
0:00:15.9]} 40. Bd4 {[%clk 0:00:26.5]} 40... Kc7 {[%clk 0:00:16.4]} 41. Rb5
{[%clk 0:00:27.1]} 41... b6 {[%clk 0:00:17.3]} 42. Kd5 {[%clk 0:00:25.3]} 42...
Ne7+ {[%clk 0:00:16.2]} 43. Ke6 {[%clk 0:00:25.3]} 43... Nc8 {[%clk 0:00:17.5]}
44. Rf5 {[%clk 0:00:23.2]} 44... Kc6 {[%clk 0:00:18.1]} 45. Rf6 {[%clk
0:00:24.1]} 45... b5 {[%clk 0:00:18.7]} 46. Ke5+ {[%clk 0:00:24.9]} 46... Kd7
{[%clk 0:00:19.7]} 47. Rxh6 {[%clk 0:00:25.6]} 47... b4 {[%clk 0:00:21.2]} 48.
Rh7+ {[%clk 0:00:26.6]} 48... Kc6 {[%clk 0:00:22.2]} 49. Rh8 {[%clk 0:00:25.3]}
49... Kd7 {[%clk 0:00:21]} 50. Kd5 {[%clk 0:00:23.9]} 50... b3 {[%clk
0:00:21.6]} 51. Rh7+ {[%clk 0:00:24.2]} 51... Ne7+ {[%clk 0:00:21.7]} 52. Kc5
{[%clk 0:00:20.1]} 52... Rxd4 {[%clk 0:00:19.8]} 53. exd4 {[%clk 0:00:16.8]}
53... b2 {[%clk 0:00:21.1]} 0-1